fUSD/lending_fUSD_20260329
["ID","MTS","AMOUNT","RATE_DAILY","PERIOD"]
[419054739,1774815047516,-151.0,0.00015361,2]
[419054740,1774815047525,-293.17725025,0.00015361,2]
[419054741,1774815047534,-150.0,0.00015363,2]
[419054742,1774815047543,-500.0,0.00015368,2]
[419054743,1774815047553,-1000.0,0.00015369,2]
[419054744,1774815047562,-243.19352721,0.00015369,2]
[419054745,1774815047571,-1000.0,0.00015373,2]
[419054746,1774815047582,-1000.0,0.00015373,2]
[419054747,1774815047592,-1000.0,0.00015373,2]
[419054748,1774815047601,-1000.0,0.00015373,2]
[419054749,1774815047611,-1000.0,0.00015373,2]
[419054750,1774815047621,-1000.0,0.00015373,2]
[419054751,1774815047631,-1000.0,0.00015373,2]
[419054752,1774815047640,-1000.0,0.00015373,2]
[419054753,1774815047650,-1000.0,0.00015373,2]
[419054754,1774815047662,-1000.0,0.00015373,2]
[419054755,1774815047672,-920.968,0.00015373,2]
[419054756,1774815047682,-1000.0,0.00015374,2]
[419054757,1774815047692,-1000.0,0.00015377,2]
[419054758,1774815047701,-500.0,0.00015388,2]
[419054759,1774815047712,-227.36412512,0.00015388,2]
[419054760,1774815047722,-2000.0,0.00015398,2]
[419054761,1774815047732,-2000.0,0.00015398,2]
[419054762,1774815047742,-2000.0,0.00015398,2]
[419054763,1774815047752,-2000.0,0.00015398,2]
[419054764,1774815047762,-2000.0,0.00015398,2]
[419054765,1774815047772,-2000.0,0.00015398,2]
[419054766,1774815047782,-2000.0,0.00015398,2]
[419054767,1774815047794,-2000.0,0.00015398,2]
[419054768,1774815047805,-410.66,0.00015402,2]
[419054769,1774815047814,-208.49528734,0.00015402,2]
[419054770,1774815047824,-2000.0,0.00015402,2]
[419054771,1774815047844,-2000.0,0.00015402,2]
[419054772,1774815047854,-2000.0,0.00015402,2]
[419054773,1774815047863,-2000.0,0.00015402,2]
[419054774,1774815047873,-2000.0,0.00015402,2]
[419054775,1774815047882,-2000.0,0.00015402,2]
[419054776,1774815047891,-2000.0,0.00015402,2]
[419054777,1774815047901,-2000.0,0.00015402,2]
[419054778,1774815047910,-2000.0,0.00015402,2]
[419054779,1774815047921,-2000.0,0.00015402,2]
[419054780,1774815047930,-350.0,0.00015405,2]
[419054781,1774815047940,-2000.0,0.00015408,2]
[419054782,1774815047949,-2000.0,0.00015408,2]
[419054783,1774815047959,-2000.0,0.00015408,2]
[419054784,1774815047969,-2000.0,0.00015408,2]
[419054785,1774815047980,-2000.0,0.00015408,2]
[419054786,1774815047990,-2000.0,0.00015408,2]
[419054787,1774815047999,-2000.0,0.00015408,2]
[419054788,1774815048009,-2000.0,0.00015408,2]
[419054789,1774815048019,-2000.0,0.00015408,2]
[419054790,1774815048029,-2000.0,0.00015408,2]
[419054791,1774815048038,-1000.0,0.0001541,2]
[419054792,1774815048048,-500.0,0.0001541,2]
[419054793,1774815048058,-500.0,0.0001541,2]
[419054794,1774815048067,-11046.30350255,0.00015416,2]
[419054795,1774815048077,-500.0,0.00015416,2]
[419054796,1774815048086,-151.0,0.00015416,2]
[419054797,1774815048096,-304.02480851,0.00015416,2]
[419054798,1774815048105,-1000.0,0.00015432,2]
[419054799,1774815048115,-1000.0,0.00015441,2]
[419054800,1774815048124,-1000.0,0.00015454,2]
[419054801,1774815048133,-1000.0,0.00015471,2]
[419054802,1774815048143,-11455.01673214,0.00015471,2]
[419054803,1774815048154,-500.0,0.00015471,2]
[419054804,1774815048165,-151.0,0.00015471,2]
[419054805,1774815048175,-315.27372642,0.00015471,2]
[419054806,1774815048185,-1000.0,0.00015472,2]
[419054807,1774815048195,-151.0,0.00015478,2]
[419054808,1774815048205,-200.0,0.0001548,2]
[419054809,1774815048215,-150.0,0.00015481,2]
[419054810,1774815048225,-1000.0,0.00015489,2]
[419054811,1774815048234,-1000.0,0.00015498,2]
[419054812,1774815048244,-5055.34,0.000155,2]
[419054813,1774815048254,-4762.68,0.000155,2]
[419054814,1774815048263,-2000.0,0.000155,2]
[419054815,1774815048273,-2003.48418562,0.000155,3]
[419054816,1774815048285,-4000.0,0.00015507,2]
[419054817,1774815048295,-1000.0,0.0001551,2]
[419054818,1774815048305,-1000.0,0.00015523,2]
[419054819,1774815048314,-11878.85235123,0.00015526,2]
[419054820,1774815048324,-500.0,0.00015526,2]
[419054821,1774815048334,-151.0,0.00015526,2]
[419054822,1774815048344,-326.9388543,0.00015526,2]
[419054823,1774815048355,-1000.0,0.00015528,2]
[419054824,1774815048366,-150.0,0.00015533,2]
[419054825,1774815048376,-166.55350379,0.00015535,2]
[419054826,1774815048387,-1000.0,0.00015537,2]
[419054827,1774815048396,-1000.0,0.00015542,2]
[419054828,1774815048408,-1000.0,0.00015548,2]
[419054829,1774815048419,-1000.0,0.00015548,2]
[419054830,1774815048429,-1000.0,0.0001555,2]
[419054831,1774815048439,-150.0,0.00015554,2]
[419054832,1774815048449,-150.0,0.00015556,2]
[419054833,1774815048461,-350.0,0.00015566,2]
[419054834,1774815048471,-1000.0,0.0001557,2]
[419054835,1774815048482,-1000.0,0.00015572,2]
[419054836,1774815048494,-1000.0,0.00015574,2]
[419054837,1774815048505,-1000.0,0.0001558,2]
[419054838,1774815048515,-12318.36988823,0.00015581,2]
[419054839,1774815048525,-500.0,0.00015581,2]
[419054840,1774815048535,-151.0,0.00015581,2]
[419054841,1774815048544,-339.03559191,0.00015581,2]
[419054842,1774815048553,-1096.24809732,0.00015585,2]
[419054843,1774815048562,-1000.0,0.00015587,2]
[419054844,1774815048571,-1000.0,0.00015591,2]
[419054845,1774815048581,-150.0,0.00015594,2]
[419054846,1774815048590,-1000.0,0.00015599,2]
[419054847,1774815048600,-20864.51,0.000156,2]
[419054848,1774815048609,-1300.0,0.000156,5]
[419054849,1774815048618,-200.0,0.000156,5]
[419054850,1774815048628,-187.77689859,0.00015615,2]
[419054851,1774815048637,-2807.0,0.0001563,2]
[419054852,1774815048647,-2067.0,0.00015633,2]
[419054853,1774815048656,-732.73812256,0.00015634,2]
[419054854,1774815048666,-12774.14957409,0.00015636,2]
[419054855,1774815048675,-500.0,0.00015636,2]
[419054856,1774815048684,-151.0,0.00015636,2]
[419054857,1774815048694,-189.38,0.00015637,2]
[419054858,1774815048703,-1000.0,0.0001564,2]
[419054859,1774815048712,-1000.0,0.00015643,2]
[419054860,1774815048722,-1000.0,0.00015655,2]
[419054861,1774815048731,-150.0,0.00015657,2]
[419054862,1774815048742,-150.0,0.00015663,2]
[419054863,1774815048751,-150.0,0.00015663,2]
[419054864,1774815048761,-1000.0,0.00015664,2]
[419054865,1774815048771,-150.0,0.00015668,2]
[419054866,1774815048781,-1000.0,0.00015673,2]
[419054867,1774815048793,-189.38,0.00015673,2]
[419054868,1774815048802,-2067.0,0.00015674,2]
[419054869,1774815048812,-150.0,0.00015675,2]
[419054870,1774815048822,-2067.0,0.00015679,2]
[419054871,1774815048832,-1000.0,0.00015681,2]
[419054872,1774815048843,-181.95612017,0.00015681,2]
[419054873,1774815048852,-1000.0,0.00015684,2]
[419054874,1774815048862,-1000.0,0.00015689,2]
[419054875,1774815048873,-13246.79310833,0.00015691,2]
[419054876,1774815048882,-500.0,0.00015691,2]
[419054877,1774815048892,-151.0,0.00015691,2]
[419054878,1774815048901,-2067.0,0.00015692,2]
[419054879,1774815048910,-4859.25,0.000157,2]
[419054880,1774815048920,-10000.0,0.000157,2]
[419054881,1774815048930,-1300.0,0.000157,5]
[419054882,1774815048939,-200.0,0.000157,5]
[419054883,1774815048949,-500.0,0.000157,2]
[419054884,1774815048959,-1000.0,0.00015702,2]
[419054885,1774815048969,-1000.0,0.00015704,2]
[419054886,1774815048979,-1000.0,0.0001571,2]
[419054887,1774815048990,-1000.0,0.00015713,2]
[419054888,1774815049000,-1000.0,0.00015715,2]
[419054889,1774815049009,-1570.0,0.0001572,2]
[419054890,1774815049019,-1000.0,0.00015721,2]
[419054891,1774815049028,-150.0,0.00015728,2]
[419054892,1774815049038,-2067.0,0.00015735,2]
[419054893,1774815049047,-1000.0,0.00015737,2]
[419054894,1774815049056,-151.0,0.00015744,2]
[419054895,1774815049066,-217.15233878,0.00015744,2]
[419054896,1774815049076,-1481.23780761,0.00015744,2]
[419054897,1774815049085,-217.15233878,0.00015744,2]
[419054898,1774815049095,-181.08010149,0.00015744,2]
[419054899,1774815049104,-200.0,0.00015744,2]
[419054900,1774815049114,-719.04747942,0.00015744,2]
[419054901,1774815049123,-290.26104003,0.00015744,2]
[419054902,1774815049133,-217.15233878,0.00015744,2]
[419054903,1774815049142,-771.01748645,0.00015744,2]
[419054904,1774815049152,-6003.86625702,0.00015746,2]
[419054905,1774815049162,-500.0,0.00015746,2]
[419054906,1774815049171,-151.0,0.00015746,2]
[419054907,1774815049181,-1000.0,0.00015749,2]
[419054908,1774815049190,-150.0,0.00015752,2]
[419054909,1774815049200,-485.3,0.00015753,2]
[419054910,1774815049210,-241.951098,0.00015753,2]
[419054911,1774815049219,-1000.0,0.00015761,2]
[419054912,1774815049229,-1000.0,0.00015764,2]
[419054913,1774815049238,-458.0,0.00015781,2]
[419054914,1774815049247,-703.0,0.00015781,2]
[419054915,1774815049258,-1000.0,0.00015781,2]
[419054916,1774815049267,-1000.0,0.00015799,2]
[419054917,1774815049277,-1000.0,0.000158,2]
[419054918,1774815049286,-1300.0,0.000158,5]
[419054919,1774815049296,-200.0,0.000158,5]
[419054920,1774815049305,-2000.0,0.000158,2]
[419054921,1774815049315,-1000.0,0.00015802,2]
[419054922,1774815049324,-1000.0,0.00015803,2]
[419054923,1774815049333,-304.0,0.00015808,2]
[419054924,1774815049343,-471.0,0.00015808,2]
[419054925,1774815049352,-1000.0,0.00015812,2]
[419054926,1774815049362,-2067.0,0.00015817,2]
[419054927,1774815049371,-150.0,0.00015817,2]
[419054928,1774815049381,-1000.0,0.00015821,2]
[419054929,1774815049390,-1000.0,0.00015822,2]
[419054930,1774815049400,-1000.0,0.00015824,2]
[419054931,1774815049410,-1000.0,0.00015825,2]
[419054932,1774815049419,-150.0,0.00015828,2]
[419054933,1774815049429,-2067.0,0.00015835,2]
[419054934,1774815049438,-67726.49863211,0.0001584,2]
[419054935,1774815049447,-2000.0,0.0001584,2]
[419054936,1774815049457,-2000.0,0.0001584,2]
[419054937,1774815049467,-2000.0,0.0001584,2]
[419054938,1774815049476,-2000.0,0.0001584,2]
[419054939,1774815049485,-2000.0,0.0001584,2]
[419054940,1774815049495,-2000.0,0.0001584,2]
[419054941,1774815049505,-2067.0,0.00015843,2]
[419054942,1774815049514,-393.00963669,0.00015851,2]
[419054943,1774815049524,-1000.0,0.00015858,2]
[419054944,1774815049533,-150.0,0.00015859,2]
[419054945,1774815049543,-200.0,0.00015872,2]
[419054946,1774815049552,-1000.0,0.00015881,2]
[419054947,1774815049561,-2067.0,0.00015884,2]
[419054948,1774815049570,-1000.0,0.00015887,2]
[419054949,1774815049579,-1000.0,0.00015888,2]
[419054950,1774815049588,-2000.0,0.0001589,2]
[419054951,1774815049598,-2500.0,0.0001589,2]
[419054952,1774815049608,-1552.52786772,0.0001589,2]
[419054953,1774815049617,-225.66563804,0.0001589,2]
[419054954,1774815049627,-2500.0,0.0001589,2]
[419054955,1774815049636,-2067.0,0.00015891,2]
[419054956,1774815049645,-4000.0,0.00015895,2]
[419054957,1774815049655,-150.0,0.000159,2]
[419054958,1774815049664,-150.0,0.000159,2]
[419054959,1774815049673,-150.0,0.000159,2]
[419054960,1774815049682,-150.0,0.000159,2]
[419054961,1774815049691,-150.0,0.000159,2]
[419054962,1774815049701,-150.0,0.000159,2]
[419054963,1774815049711,-20210.25894818,0.000159,2]
[419054964,1774815049720,-1300.0,0.000159,5]
[419054965,1774815049729,-205174.86764607,0.000159,2]
[419054966,1774815049738,-150.0,0.000159,2]
[419054967,1774815049748,-200.0,0.000159,5]
[419054968,1774815049758,-224.32485354,0.000159,2]
[419054969,1774815049768,-3795.23329005,0.000159,2]
[419054970,1774815049777,-38738.26631164,0.000159,2]
[419054971,1774815049786,-1000.0,0.000159,2]
[419054972,1774815049795,-896.261,0.000159,2]
[419054973,1774815049804,-9606.5105148,0.000159,2]
[419054974,1774815049814,-523.92140392,0.00015905,2]
[419054975,1774815049824,-2067.0,0.00015913,2]
[419054976,1774815049833,-1000.0,0.00015913,2]
[419054977,1774815049842,-2067.0,0.00015916,2]
[419054978,1774815049852,-1000.0,0.00015923,2]
[419054979,1774815049862,-150.0,0.00015925,2]
[419054980,1774815049871,-485.30481534,0.00015928,2]
[419054981,1774815049881,-410.66135487,0.00015928,2]
[419054982,1774815049891,-1000.0,0.00015929,2]
[419054983,1774815049900,-200.0,0.0001593,2]
[419054984,1774815049909,-1000.0,0.00015932,2]
[419054985,1774815049919,-1000.0,0.00015936,2]
[419054986,1774815049928,-1000.0,0.00015938,2]
[419054987,1774815049937,-1000.0,0.00015941,2]
[419054988,1774815049947,-1346.0,0.00015949,2]
[419054989,1774815049956,-1270.708,0.00015949,2]
[419054990,1774815049966,-151.208,0.00015949,2]
[419054991,1774815049975,-350.0,0.0001595,3]
[419054992,1774815049985,-1000.0,0.00015951,2]
[419054993,1774815049994,-211.19600435,0.00015952,2]
[419054994,1774815050003,-1000.0,0.00015958,2]
[419054995,1774815050014,-1000.0,0.00015958,2]
[419054996,1774815050024,-1000.0,0.00015958,2]
[419054997,1774815050035,-1000.0,0.00015959,2]
[419054998,1774815050044,-3835.20744626,0.0001596,2]
[419054999,1774815050053,-2067.0,0.0001596,2]
[419055000,1774815050063,-1000.0,0.00015962,2]
[419055001,1774815050072,-500.0,0.00015973,2]
[419055002,1774815050082,-500.0,0.00015973,2]
[419055003,1774815050091,-500.0,0.00015973,2]
[419055004,1774815050101,-500.0,0.00015973,2]
[419055005,1774815050110,-500.0,0.00015973,2]
[419055006,1774815050120,-500.0,0.00015973,2]
[419055007,1774815050130,-500.0,0.00015973,2]
[419055008,1774815050139,-286.26486585,0.00015973,2]
[419055009,1774815050149,-500.0,0.00015973,2]
[419055010,1774815050159,-500.0,0.00015973,2]
[419055011,1774815050169,-500.0,0.00015973,2]
[419055012,1774815050179,-1000.0,0.00015973,2]
[419055013,1774815050189,-2067.0,0.00015974,2]
[419055014,1774815050198,-350.0,0.00015979,2]
[419055015,1774815050209,-1000.0,0.00015991,2]
[419055016,1774815050219,-1000.0,0.00015992,2]
[419055017,1774815050228,-191.34143382,0.00015993,2]
[419055018,1774815050238,-153.659202,0.00015997,2]
[419055019,1774815050455,-1002.75935616,0.00015999,2]
[419055020,1774815050485,-666.0,0.00015999,2]
[419055021,1774815050494,-666.0,0.00015999,2]
[419055022,1774815050503,-666.0,0.00015999,2]
[419055023,1774815050512,-1674523.00610884,0.00016,2]
[419055024,1774815052492,-2000.0,0.00015398,2]
[419055025,1774815052501,-2000.0,0.00015398,2]
[419055026,1774815052510,-2633.13592568,0.00016,2]
[419055027,1774815052578,-471.61172159,0.00016,2]
[419055028,1774815052590,-892.18335078,0.00016,2]
[419055029,1774815052609,-3600.0,0.00016,2]
[419055030,1774815052693,-269.04626348,0.00016,2]
[419055031,1774815052706,-350.33533698,0.00016,2]
[419055032,1774815052718,-1902.07,0.00016,2]
[419055033,1774815053079,-972.59568653,0.00016,2]
[419055034,1774815053111,-11723.64423464,0.00016,2]
[419055035,1774815053124,-57274.47449626,0.00016,2]
[419055036,1774815053135,-3783.16635805,0.00016,2]
[419055037,1774815053199,-329.87839,0.00016,2]
[419055038,1774815053589,-999.0,0.00016,2]
[419055039,1774815053691,-4967.55885306,0.00016,2]
[419055040,1774815054629,-485.36802891,0.00016,2]
[419055041,1774815054644,-1999.00000006,0.00016,2]
[419055042,1774815054655,-382.94399198,0.00016,2]
[419055043,1774815054666,-300.15125318,0.00016,2]
[419055044,1774815054678,-1378.55308111,0.00016,2]
[419055045,1774815054703,-571.82945458,0.00016,2]
[419055046,1774815054714,-1998.0,0.00016,2]
[419055047,1774815150260,424.77,9.135e-05,2]
[419055052,1774816006087,700.0,8.524e-05,2]
[419055053,1774816006634,800.0,9.331e-05,2]
[419055054,1774816052517,-150.0,9.515e-05,2]
[419055055,1774816070453,764.51,8.721e-05,2]
[419055056,1774816071012,550.0,9.43e-05,2]
[419055057,1774816226356,4646.57,9.515e-05,2]
[419055073,1774816232559,-250.0,9.515e-05,2]
[419055074,1774816232569,-151.72,0.00010075,2]
[419055075,1774816232578,-242.10857995,0.00010142,2]
[419055076,1774816232590,-83.15142005,0.00010142,2]
[419055077,1774816232600,-270.34857995,0.00010304,2]
[419055078,1774816232619,-190.95142005,0.00010304,2]
[419055079,1774816232628,-1292.07202017,0.000104,2]
[419055080,1774816232640,-445.76046939,0.000104,2]
[419055081,1774816232652,-8262.16751044,0.000104,2]
[419055082,1774816232662,-250.0,0.00010466,2]
[419055083,1774816232671,-5000.0,0.00010466,2]
[419055084,1774816232680,-250.0,0.00010466,2]
[419055085,1774816232689,-1002.75935616,0.00010696,2]
[419055086,1774816232699,-1200.0,0.00010696,2]
[419055087,1774816232708,-150.0,0.00010696,2]
[419055088,1774816232717,-9999.99,0.00010697,2]
[419055089,1774816232727,-9999.99,0.00010697,2]
[419055090,1774816232736,-2115.96,0.00010697,2]
[419055091,1774816232745,-9999.99,0.00010697,2]
[419055092,1774816232755,-500.0,0.00010697,2]
[419055093,1774816232764,-500.0,0.00010697,2]
[419055094,1774816232774,-500.0,0.00010697,2]
[419055095,1774816233308,-500.0,0.00010697,2]
[419055096,1774816233348,-500.0,0.00010697,2]
[419055097,1774816233358,-500.0,0.00010697,2]
[419055098,1774816233368,-500.0,0.00010697,2]
[419055099,1774816233378,-500.0,0.00010697,2]
[419055100,1774816233388,-500.0,0.00010697,2]
[419055101,1774816233398,-500.0,0.00010697,2]
[419055102,1774816233408,-500.0,0.00010697,2]
[419055103,1774816233418,-200.0,0.00010697,2]
[419055104,1774816233428,-151.0,0.00010697,2]
[419055105,1774816233438,-151.0,0.00010697,2]
[419055106,1774816233448,-151.0,0.00010697,2]
[419055107,1774816233457,-151.0,0.00010697,2]
[419055108,1774816233467,-151.0,0.00010697,2]
[419055109,1774816233476,-151.0,0.00010697,2]
[419055110,1774816233486,-151.0,0.00010697,2]
[419055111,1774816233495,-151.0,0.00010697,2]
[419055112,1774816233505,-151.0,0.00010697,2]
[419055113,1774816233514,-151.0,0.00010697,2]
[419055114,1774816233525,-151.0,0.00010697,2]
[419055115,1774816233535,-151.0,0.00010697,2]
[419055116,1774816233545,-151.0,0.00010697,2]
[419055117,1774816233555,-151.0,0.00010697,2]
[419055118,1774816233565,-151.0,0.00010697,2]
[419055119,1774816233576,-151.0,0.00010697,2]
[419055120,1774816233585,-151.0,0.00010697,2]
[419055121,1774816233594,-151.0,0.00010697,2]
[419055122,1774816233604,-151.0,0.00010697,2]
[419055123,1774816233613,-151.0,0.00010697,2]
[419055124,1774816233623,-151.0,0.00010697,2]
[419055125,1774816233632,-151.0,0.00010697,2]
[419055126,1774816233642,-500.0,0.00010697,2]
[419055127,1774816233657,-151.0,0.00010697,2]
[419055128,1774816233667,-500.0,0.00010697,2]
[419055129,1774816233677,-151.0,0.00010697,2]
[419055130,1774816233687,-500.0,0.00010697,2]
[419055131,1774816233697,-151.0,0.00010697,2]
[419055132,1774816233707,-500.0,0.00010697,2]
[419055133,1774816233717,-151.0,0.00010697,2]
[419055134,1774816233727,-500.0,0.00010697,2]
[419055135,1774816233736,-500.0,0.00010697,2]
[419055136,1774816233746,-151.0,0.00010697,2]
[419055137,1774816233756,-230.85837694,0.00010697,2]
[419055138,1774816233766,-151.0,0.00010697,2]
[419055139,1774816233776,-151.0,0.00010697,2]
[419055140,1774816233786,-151.0,0.00010697,2]
[419055141,1774816233795,-151.0,0.00010697,2]
[419055142,1774816233804,-151.0,0.00010697,2]
[419055143,1774816233814,-940.31,0.00010697,2]
[419055144,1774816233824,-500.0,0.000107,2]
[419055145,1774816233834,-150.99,0.00010702,2]
[419055146,1774816233844,-999.99,0.00010702,2]
[419055147,1774816233854,-2997.56,0.00010702,2]
[419055148,1774816233863,-500.0,0.00010959,2]
[419055149,1774816233873,-940.31,0.00010971,2]
[419055150,1774816233882,-150.0,0.000111,2]
[419055151,1774816233892,-1383.75667814,0.00011179,2]
[419055152,1774816233902,-200.0,0.00011245,2]
[419055153,1774816233912,-940.31,0.00011245,2]
[419055154,1774816233922,-1000.0,0.00011248,2]
[419055155,1774816233932,-866.0,0.00011322,2]
[419055156,1774816233942,-1317.0,0.00011344,2]
[419055157,1774816233951,-709.0,0.00011367,2]
[419055158,1774816233961,-1026.0,0.00011389,2]
[419055159,1774816233970,-555.0,0.00011412,2]
[419055160,1774816233980,-7991.9,0.00011492,2]
[419055161,1774816233990,-2467.7,0.00011507,2]
[419055162,1774816234000,-940.31,0.00011519,2]
[419055163,1774816234010,-327.11,0.00011568,2]
[419055164,1774816234019,-1600.0,0.0001172,2]
[419055165,1774816234030,-255.0,0.00011733,2]
[419055166,1774816234040,-1680.0,0.00011765,2]
[419055167,1774816234050,-200.0,0.00011793,2]
[419055168,1774816234060,-940.31,0.00011793,2]
[419055169,1774816234071,-1500.0,0.00011796,2]
[419055170,1774816234081,-150.0,0.00011808,2]
[419055171,1774816234091,-500.0,0.00011895,2]
[419055172,1774816234100,-500.0,0.00011897,2]
[419055173,1774816234110,-1229.47,0.00011937,2]
[419055174,1774816234119,-200.0,0.00012046,2]
[419055175,1774816234130,-940.31,0.00012067,2]
[419055176,1774816234140,-166.66,0.00012235,2]
[419055177,1774816234152,-600.0,0.00012288,2]
[419055178,1774816234162,-200.0,0.00012341,2]
[419055179,1774816234172,-940.31,0.00012341,2]
[419055180,1774816234182,-2000.0,0.00012344,2]
[419055181,1774816234191,-192.492138,0.00012389,2]
[419055182,1774816234201,-196.8739,0.000124,2]
[419055183,1774816234211,-250.0,0.00012572,2]
[419055184,1774816234222,-151.72,0.00012594,2]
[419055185,1774816234231,-940.38,0.00012615,2]
[419055186,1774816234240,-166.66,0.00012638,2]
[419055187,1774816234250,-150.0,0.00012694,2]
[419055188,1774816234260,-5268.6384,0.00012823,2]
[419055189,1774816234270,-433.0,0.00012867,2]
[419055190,1774816234279,-233.86267869,0.00012889,2]
[419055191,1774816234289,-1076.75669663,0.00012892,2]
[419055192,1774816234299,-2351.0,0.00012942,2]
[419055193,1774816234308,-156.86,0.00013013,2]
[419055194,1774816234319,-166.66,0.00013042,2]
[419055195,1774816234329,-1600.0,0.00013185,2]
[419055196,1774816234339,-3240.0,0.00013425,2]
[419055197,1774816234348,-151.0,0.00013436,2]
[419055198,1774816234358,-166.66,0.00013446,2]
[419055199,1774816234368,-306.0,0.00013452,2]
[419055200,1774816234378,-500.0,0.00013479,2]
[419055201,1774816234388,-500.0,0.00013698,2]
[419055202,1774816234398,-3438.59,0.00013699,2]
[419055203,1774816234408,-200.0,0.00013699,2]
[419055204,1774816234423,-258.3955,0.000138,2]
[419055205,1774816234432,-166.66,0.0001385,2]
[419055206,1774816234442,-160.0,0.00013894,2]
[419055207,1774816234452,-160.0,0.00013894,2]
[419055208,1774816234462,-959.8630956,0.00013894,2]
[419055209,1774816234472,-1006.29,0.00013953,2]
[419055210,1774816234481,-28692.08909669,0.00014115,2]
[419055211,1774816234491,-736.0,0.00014118,2]
[419055212,1774816234501,-3292.0,0.00014236,2]
[419055213,1774816234511,-166.66,0.00014254,2]
[419055214,1774816234520,-500.0,0.00014356,2]
[419055215,1774816234530,-3438.59,0.00014384,2]
[419055216,1774816234540,-2500.0,0.00014593,2]
[419055217,1774816234550,-5000.0,0.00014595,2]
[419055218,1774816234559,-1932.72312536,0.000146,2]
[419055219,1774816234568,-1309.82082122,0.000146,2]
[419055220,1774816234577,-224.32485354,0.000146,2]
[419055221,1774816234587,-8990.3638514,0.000146,2]
[419055222,1774816234597,-11702.69070788,0.000146,2]
[419055223,1774816234606,-177.96010828,0.000146,2]
[419055224,1774816234616,-1200.81381435,0.000146,2]
[419055225,1774816234625,-1265.07776335,0.000146,2]
[419055226,1774816234635,-500.0,0.000146,5]
[419055227,1774816234645,-1600.0,0.0001465,2]
[419055228,1774816234655,-500.0,0.00014673,2]
[419055229,1774816234665,-500.0,0.00014673,2]
[419055230,1774816234674,-500.0,0.00014673,2]
[419055231,1774816234684,-500.0,0.00014673,2]
[419055232,1774816234694,-500.0,0.00014673,2]
[419055233,1774816234703,-500.0,0.00014673,2]
[419055234,1774816234714,-500.0,0.00014673,2]
[419055235,1774816234724,-500.0,0.00014673,2]
[419055236,1774816234734,-403.83679365,0.00014673,2]
[419055237,1774816234743,-500.0,0.00014673,2]
[419055238,1774816234753,-500.0,0.00014673,2]
[419055239,1774816234762,-225.66563804,0.00014673,2]
[419055240,1774816234772,-500.0,0.00014673,2]
[419055241,1774816234781,-418.63,0.00014685,2]
[419055242,1774816234790,-418.63,0.00014685,2]
[419055243,1774816234800,-418.63,0.00014685,2]
[419055244,1774816234810,-418.63,0.00014685,2]
[419055245,1774816234821,-418.63,0.00014685,2]
[419055246,1774816234831,-502.70414622,0.00014693,2]
[419055247,1774816234840,-685.98993686,0.00014693,2]
[419055248,1774816234850,-923110.57987862,0.00014695,2]
[419055249,1774816234866,-6608.37891665,0.00014695,2]
[419055250,1774816234879,-8114.92901731,0.00014695,2]
[419055251,1774816234892,-260.03248731,0.00014695,2]
[419055252,1774816234908,-18592.18587951,0.00014695,2]
[419055253,1774816234919,-699.0,0.00014695,2]
[419055256,1774816240369,-1525.46764837,0.00011106,2]
[419055257,1774816240382,-60.53235163,0.00011106,2]
[419055258,1774816240392,-509.0,0.00011128,2]
[419055259,1774816240404,-428.38660433,0.00011151,2]